[Event "*** Titled Tuesday Blitz"]
[Site "Chess.com"]
[Date "2021.02.09"]
[Round "1"]
[White "kai_nov"]
[Black "Alexander_Moskalenko"]
[Result "0-1"]
[WhiteElo "2403"]
[BlackElo "2773"]
[TimeControl "180+1"]
[EndTime "10:07:00 PST"]
[Termination "Alexander_Moskalenko won on time"]

1. d4 {[%clk 0:02:50.7]} 1... f5 {[%clk 0:02:42.1]} 2. g3 {[%clk 0:02:49.5]}
2... e6 {[%clk 0:02:38.4]} 3. Bg2 {[%clk 0:02:49]} 3... Nf6 {[%clk 0:02:39.3]}
4. c4 {[%clk 0:02:46.3]} 4... c6 {[%clk 0:02:39.9]} 5. Nf3 {[%clk 0:02:36.7]}
5... d5 {[%clk 0:02:40]} 6. O-O {[%clk 0:02:33.1]} 6... Bd6 {[%clk 0:02:40.5]}
7. Nc3 {[%clk 0:02:29.1]} 7... O-O {[%clk 0:02:40.2]} 8. Qc2 {[%clk 0:02:28.3]}
8... Bd7 {[%clk 0:02:37]} 9. Rb1 {[%clk 0:02:24.4]} 9... a5 {[%clk 0:02:37]} 10.
c5 {[%clk 0:02:21]} 10... Bc7 {[%clk 0:02:32.9]} 11. Bf4 {[%clk 0:02:20.3]}
11... Bxf4 {[%clk 0:02:18]} 12. gxf4 {[%clk 0:02:19.7]} 12... Be8 {[%clk
0:02:18.9]} 13. Ne5 {[%clk 0:02:10.6]} 13... Nbd7 {[%clk 0:02:15.1]} 14. a3
{[%clk 0:02:05.3]} 14... Bh5 {[%clk 0:02:13.9]} 15. Kh1 {[%clk 0:02:02.3]} 15...
Nxe5 {[%clk 0:02:12.8]} 16. fxe5 {[%clk 0:02:00.4]} 16... Ne4 {[%clk 0:02:12.4]}
17. f3 {[%clk 0:01:50.6]} 17... Ng5 {[%clk 0:02:02.6]} 18. f4 {[%clk 0:01:37.1]}
18... Ne4 {[%clk 0:02:02.3]} 19. Nxe4 {[%clk 0:01:25.2]} 19... fxe4 {[%clk
0:02:02.5]} 20. e3 {[%clk 0:01:24.1]} 20... Qh4 {[%clk 0:02:01.7]} 21. Qf2
{[%clk 0:01:16.7]} 21... Qxf2 {[%clk 0:02:01.4]} 22. Rxf2 {[%clk 0:01:16.8]}
22... Bg4 {[%clk 0:02:02.3]} 23. h3 {[%clk 0:01:03.1]} 23... Bf5 {[%clk
0:02:01.8]} 24. Kh2 {[%clk 0:01:02.9]} 24... b6 {[%clk 0:02:00.2]} 25. cxb6
{[%clk 0:00:59.1]} 25... Rfb8 {[%clk 0:01:59.7]} 26. Rc2 {[%clk 0:00:54.2]}
26... Rxb6 {[%clk 0:01:59.8]} 27. Rbc1 {[%clk 0:00:53.8]} 27... Rab8 {[%clk
0:01:56.1]} 28. Rxc6 {[%clk 0:00:53.2]} 28... Rxb2 {[%clk 0:01:54.3]} 29. Rc8+
{[%clk 0:00:49.3]} 29... Rxc8 {[%clk 0:01:53.3]} 30. Rxc8+ {[%clk 0:00:48.9]}
30... Kf7 {[%clk 0:01:54.2]} 31. Rc3 {[%clk 0:00:47.6]} 31... h5 {[%clk
0:01:51.7]} 32. h4 {[%clk 0:00:44.2]} 32... Bg4 {[%clk 0:01:46.5]} 33. Kg3
{[%clk 0:00:43]} 33... Rd2 {[%clk 0:01:44.9]} 34. Bh3 {[%clk 0:00:36.5]} 34...
Bxh3 {[%clk 0:01:44.2]} 35. Kxh3 {[%clk 0:00:35.2]} 35... Rd3 {[%clk 0:01:44.7]}
36. Rc7+ {[%clk 0:00:32.7]} 36... Kg6 {[%clk 0:01:44.2]} 37. Re7 {[%clk
0:00:27.5]} 37... Rxe3+ {[%clk 0:01:44.5]} 38. Kg2 {[%clk 0:00:27.6]} 38... Kf5
{[%clk 0:01:45]} 39. Rxg7 {[%clk 0:00:25.5]} 39... Kxf4 {[%clk 0:01:41.9]} 40.
Rf7+ {[%clk 0:00:19.8]} 40... Kg4 {[%clk 0:01:42.2]} 41. Rf6 {[%clk 0:00:19.4]}
41... Rd3 {[%clk 0:01:42.7]} 42. Rxe6 {[%clk 0:00:18.4]} 42... Rd2+ {[%clk
0:01:42.8]} 43. Kf1 {[%clk 0:00:17.7]} 43... Rxd4 {[%clk 0:01:43.7]} 44. Rf6
{[%clk 0:00:16.3]} 44... e3 {[%clk 0:01:39.2]} 45. Ke2 {[%clk 0:00:16.2]} 45...
Re4 {[%clk 0:01:39.2]} 46. e6 {[%clk 0:00:13.2]} 46... Kxh4 {[%clk 0:01:39.3]}
47. Rf5 {[%clk 0:00:11.5]} 47... d4 {[%clk 0:01:27.5]} 48. Rd5 {[%clk
0:00:06.4]} 48... Kg4 {[%clk 0:01:19.2]} 49. e7 {[%clk 0:00:06.1]} 49... Rxe7
{[%clk 0:01:19.3]} 50. Rxd4+ {[%clk 0:00:06.3]} 50... Kg3 {[%clk 0:01:19.8]} 51.
Rd5 {[%clk 0:00:04.3]} 51... h4 {[%clk 0:01:20.4]} 52. Rxa5 {[%clk 0:00:04.3]}
52... h3 {[%clk 0:01:20.4]} 53. Rg5+ {[%clk 0:00:04.4]} 53... Kh4 {[%clk
0:01:20.6]} 54. Rg8 {[%clk 0:00:03.7]} 54... h2 {[%clk 0:01:21]} 0-1

[Event "*** Titled Tuesday Blitz"]
[Site "Chess.com"]
[Date "2021.02.09"]
[Round "1"]
[White "Titus369"]
[Black "VladimirBugayev"]
[Result "1-0"]
[WhiteElo "2567"]
[BlackElo "2264"]
[TimeControl "180+1"]
[EndTime "10:07:05 PST"]
[Termination "Titus369 won by checkmate"]

1. e4 {[%clk 0:03:00.9]} 1... c6 {[%clk 0:02:59]} 2. d4 {[%clk 0:03:00.4]} 2...
d5 {[%clk 0:02:57.5]} 3. Nd2 {[%clk 0:03:00.8]} 3... dxe4 {[%clk 0:02:57.3]} 4.
Nxe4 {[%clk 0:03:01.7]} 4... Nf6 {[%clk 0:02:57.4]} 5. Nxf6+ {[%clk 0:03:00.2]}
5... exf6 {[%clk 0:02:58.3]} 6. c3 {[%clk 0:02:58.2]} 6... Bd6 {[%clk
0:02:58.7]} 7. Bd3 {[%clk 0:02:58.9]} 7... O-O {[%clk 0:02:58.9]} 8. Ne2 {[%clk
0:02:59.6]} 8... Re8 {[%clk 0:02:58.7]} 9. Be3 {[%clk 0:03:00.1]} 9... Nd7
{[%clk 0:02:53.6]} 10. Qc2 {[%clk 0:02:59.9]} 10... Nf8 {[%clk 0:02:53.4]} 11.
O-O-O {[%clk 0:02:51.7]} 11... b5 {[%clk 0:02:51.7]} 12. h4 {[%clk 0:02:46.3]}
12... Be6 {[%clk 0:02:44.9]} 13. Kb1 {[%clk 0:02:33.3]} 13... Qa5 {[%clk
0:02:20.2]} 14. b3 {[%clk 0:02:31.7]} 14... Rab8 {[%clk 0:02:20.5]} 15. h5
{[%clk 0:02:17]} 15... Bc4 {[%clk 0:02:02.1]} 16. Ka1 {[%clk 0:01:57.1]} 16...
Bxd3 {[%clk 0:01:59.3]} 17. Rxd3 {[%clk 0:01:54.8]} 17... h6 {[%clk 0:01:33.6]}
18. g4 {[%clk 0:01:43.2]} 18... Ne6 {[%clk 0:01:29.1]} 19. f4 {[%clk 0:01:36.9]}
19... Nc7 {[%clk 0:01:22.3]} 20. g5 {[%clk 0:01:26.8]} 20... Nd5 {[%clk
0:01:22.1]} 21. Bc1 {[%clk 0:01:18.2]} 21... hxg5 {[%clk 0:00:45.7]} 22. fxg5
{[%clk 0:01:12.3]} 22... f5 {[%clk 0:00:45.5]} 23. g6 {[%clk 0:01:03.4]} 23...
Re4 {[%clk 0:00:34]} 24. h6 {[%clk 0:00:52.4]} 24... fxg6 {[%clk 0:00:29.9]} 25.
hxg7 {[%clk 0:00:51.8]} 25... Rbe8 {[%clk 0:00:29.6]} 26. Ng3 {[%clk 0:00:35.2]}
26... Bxg3 {[%clk 0:00:28.4]} 27. Rxg3 {[%clk 0:00:31.5]} 27... Kxg7 {[%clk
0:00:27.2]} 28. Qh2 {[%clk 0:00:27.2]} 28... Rg8 {[%clk 0:00:11.1]} 29. Qh7+
{[%clk 0:00:22.2]} 29... Kf8 {[%clk 0:00:10.8]} 30. Bh6+ {[%clk 0:00:21.8]}
30... Ke8 {[%clk 0:00:10.7]} 31. Qxg8+ {[%clk 0:00:22]} 31... Kd7 {[%clk
0:00:11.2]} 32. Qxg6 {[%clk 0:00:16.1]} 32... Nxc3 {[%clk 0:00:09.6]} 33. Qxf5+
{[%clk 0:00:15.8]} 33... Kc7 {[%clk 0:00:09.7]} 34. Rg7+ {[%clk 0:00:09.2]}
34... Kb6 {[%clk 0:00:09.7]} 35. Qc5+ {[%clk 0:00:08.5]} 35... Ka6 {[%clk
0:00:07]} 36. Rxa7# {[%clk 0:00:08.9]} 1-0

[Event "*** Titled Tuesday Blitz"]
[Site "Chess.com"]
[Date "2021.02.09"]
[Round "1"]
[White "soumeow"]
[Black "bazar-wokzal"]
[Result "0-1"]
[WhiteElo "2212"]
[BlackElo "2532"]
[TimeControl "180+1"]
[EndTime "10:07:05 PST"]
[Termination "bazar-wokzal won on time"]

1. Nf3 {[%clk 0:02:57.4]} 1... f5 {[%clk 0:02:55.4]} 2. g3 {[%clk 0:02:55.5]}
2... Nf6 {[%clk 0:02:52.2]} 3. Bg2 {[%clk 0:02:55.7]} 3... d6 {[%clk 0:02:52.7]}
4. b3 {[%clk 0:02:55]} 4... e5 {[%clk 0:02:52.7]} 5. Bb2 {[%clk 0:02:52.9]} 5...
Nc6 {[%clk 0:02:53]} 6. d3 {[%clk 0:02:46.1]} 6... h6 {[%clk 0:02:52.7]} 7. Nbd2
{[%clk 0:02:45.9]} 7... g5 {[%clk 0:02:52.5]} 8. e4 {[%clk 0:02:42.2]} 8... f4
{[%clk 0:02:51]} 9. h3 {[%clk 0:02:29.4]} 9... Bg7 {[%clk 0:02:50]} 10. gxf4
{[%clk 0:02:23.2]} 10... exf4 {[%clk 0:02:46.7]} 11. d4 {[%clk 0:02:19.8]} 11...
Qe7 {[%clk 0:02:45.3]} 12. Qe2 {[%clk 0:02:18.1]} 12... Nb4 {[%clk 0:02:41.5]}
13. O-O-O {[%clk 0:01:56.3]} 13... Nxa2+ {[%clk 0:02:35.7]} 14. Kb1 {[%clk
0:01:56.2]} 14... Nb4 {[%clk 0:02:36.4]} 15. Qb5+ {[%clk 0:01:51.1]} 15... Nc6
{[%clk 0:02:35.7]} 16. d5 {[%clk 0:01:50.7]} 16... a6 {[%clk 0:02:36.1]} 17. Qa4
{[%clk 0:01:44.6]} 17... b5 {[%clk 0:02:35.4]} 18. Qa1 {[%clk 0:01:43.8]} 18...
Nd8 {[%clk 0:02:19.8]} 19. e5 {[%clk 0:01:38.1]} 19... dxe5 {[%clk 0:02:13.2]}
20. Nxe5 {[%clk 0:01:35.9]} 20... Bf5 {[%clk 0:02:06.4]} 21. d6 {[%clk
0:00:47.7]} 21... cxd6 {[%clk 0:02:05.8]} 22. Rhe1 {[%clk 0:00:31]} 22... dxe5
{[%clk 0:01:32.5]} 23. Rxe5 {[%clk 0:00:30.7]} 23... Be6 {[%clk 0:01:16.7]} 24.
Bxa8 {[%clk 0:00:26.9]} 24... O-O {[%clk 0:01:16.6]} 25. Rde1 {[%clk 0:00:21]}
25... Qd7 {[%clk 0:01:11.1]} 26. Nf3 {[%clk 0:00:15.5]} 26... Bxh3 {[%clk
0:01:06.5]} 27. Re7 {[%clk 0:00:13.4]} 27... Qc8 {[%clk 0:00:59]} 28. Rxg7+
{[%clk 0:00:10.4]} 28... Kxg7 {[%clk 0:00:58.8]} 29. Re7+ {[%clk 0:00:08.8]}
29... Kg6 {[%clk 0:00:46.6]} 30. Ne5+ {[%clk 0:00:04.8]} 30... Kh5 {[%clk
0:00:37.6]} 31. Bf3+ {[%clk 0:00:04.6]} 31... g4 {[%clk 0:00:37.6]} 32. Nxg4
{[%clk 0:00:03.2]} 32... Nxg4 {[%clk 0:00:34.6]} 33. Bg7 {[%clk 0:00:01.5]}
33... Rf5 {[%clk 0:00:26]} 0-1

[Event "*** Titled Tuesday Blitz"]
[Site "Chess.com"]
[Date "2021.02.09"]
[Round "1"]
[White "Hypercar"]
[Black "garicradomir"]
[Result "0-1"]
[WhiteElo "2504"]
[BlackElo "2215"]
[TimeControl "180+1"]
[EndTime "10:07:05 PST"]
[Termination "garicradomir won on time"]

1. d4 {[%clk 0:02:52.5]} 1... Nf6 {[%clk 0:02:58.7]} 2. Nf3 {[%clk 0:02:49.2]}
2... c5 {[%clk 0:02:58.6]} 3. dxc5 {[%clk 0:02:48]} 3... e6 {[%clk 0:02:57.8]}
4. e3 {[%clk 0:02:20.7]} 4... Bxc5 {[%clk 0:02:57.6]} 5. Bd3 {[%clk 0:02:20.5]}
5... b6 {[%clk 0:02:57]} 6. O-O {[%clk 0:02:20.4]} 6... Bb7 {[%clk 0:02:57]} 7.
a3 {[%clk 0:02:19.2]} 7... O-O {[%clk 0:02:56.2]} 8. b4 {[%clk 0:02:18.5]} 8...
Be7 {[%clk 0:02:56.7]} 9. Bb2 {[%clk 0:02:17.9]} 9... d6 {[%clk 0:02:56.6]} 10.
Qe2 {[%clk 0:02:17.3]} 10... a6 {[%clk 0:02:51.1]} 11. Nbd2 {[%clk 0:02:16.9]}
11... Nbd7 {[%clk 0:02:50.8]} 12. c4 {[%clk 0:02:16.7]} 12... Qc7 {[%clk
0:02:46.7]} 13. Rac1 {[%clk 0:02:15.3]} 13... Rac8 {[%clk 0:02:46.3]} 14. h3
{[%clk 0:02:13.9]} 14... Rfe8 {[%clk 0:02:45.6]} 15. Nd4 {[%clk 0:01:59.8]}
15... Qb8 {[%clk 0:02:41.8]} 16. N4f3 {[%clk 0:01:18.7]} 16... Qa8 {[%clk
0:02:38.6]} 17. Rfd1 {[%clk 0:01:14.7]} 17... Red8 {[%clk 0:02:37.9]} 18. Ne1
{[%clk 0:01:11.5]} 18... Nf8 {[%clk 0:02:35.7]} 19. f3 {[%clk 0:01:07.1]} 19...
h5 {[%clk 0:02:33.8]} 20. e4 {[%clk 0:01:06.2]} 20... h4 {[%clk 0:02:27.5]} 21.
Nf1 {[%clk 0:01:04.4]} 21... Ng6 {[%clk 0:02:21.9]} 22. Qf2 {[%clk 0:01:04]}
22... Nh5 {[%clk 0:02:14.8]} 23. Qxb6 {[%clk 0:01:02.2]} 23... Bg5 {[%clk
0:01:59.4]} 24. Rb1 {[%clk 0:01:01.3]} 24... Ngf4 {[%clk 0:01:58.2]} 25. Qf2
{[%clk 0:00:59]} 25... Nxd3 {[%clk 0:01:55.2]} 26. Nxd3 {[%clk 0:00:58]} 26...
Rxc4 {[%clk 0:01:55.6]} 27. Bc1 {[%clk 0:00:54]} 27... Bf6 {[%clk 0:01:52.4]}
28. Be3 {[%clk 0:00:51.4]} 28... d5 {[%clk 0:01:49.2]} 29. Nc5 {[%clk
0:00:36.3]} 29... Bc6 {[%clk 0:01:36.7]} 30. Bd4 {[%clk 0:00:29.7]} 30... Rxd4
{[%clk 0:01:20]} 31. Rxd4 {[%clk 0:00:29.1]} 31... Bxd4 {[%clk 0:01:20.9]} 32.
Qxd4 {[%clk 0:00:29.6]} 32... dxe4 {[%clk 0:01:21.7]} 33. Qf2 {[%clk 0:00:30.3]}
33... exf3 {[%clk 0:01:21.5]} 34. Qxh4 {[%clk 0:00:30.5]} 34... fxg2 {[%clk
0:01:21.6]} 35. Qxh5 {[%clk 0:00:28.7]} 35... gxf1=Q+ {[%clk 0:01:21]} 36. Rxf1
{[%clk 0:00:29.6]} 36... Be8 {[%clk 0:01:18.5]} 37. Qf3 {[%clk 0:00:22.9]} 37...
Qa7 {[%clk 0:01:16.8]} 38. Rf2 {[%clk 0:00:16.2]} 38... a5 {[%clk 0:01:16.4]}
39. Qf4 {[%clk 0:00:10.3]} 39... axb4 {[%clk 0:01:14.5]} 40. axb4 {[%clk
0:00:11.2]} 40... Rd1+ {[%clk 0:01:13.3]} 41. Kh2 {[%clk 0:00:10.8]} 41... Qa8
{[%clk 0:01:11.7]} 42. Qf3 {[%clk 0:00:09.4]} 42... Qa1 {[%clk 0:01:05.5]} 43.
Ne4 {[%clk 0:00:01.1]} 43... Qe5+ {[%clk 0:01:04.8]} 44. Ng3 {[%clk 0:00:01.1]}
44... Qe1 {[%clk 0:01:02.3]} 45. h4 {[%clk 0:00:02]} 45... Rd2 {[%clk
0:00:58.7]} 46. Rxd2 {[%clk 0:00:01.4]} 46... Qxd2+ {[%clk 0:00:59.6]} 47. Qg2
{[%clk 0:00:02.1]} 47... Qxb4 {[%clk 0:00:59.4]} 48. Kh3 {[%clk 0:00:02.6]}
48... e5 {[%clk 0:00:58.7]} 49. Nh5 {[%clk 0:00:02.8]} 49... Bd7+ {[%clk
0:00:58.8]} 50. Kh2 {[%clk 0:00:01.7]} 50... Qxh4+ {[%clk 0:00:58.5]} 51. Kg1
{[%clk 0:00:02.6]} 51... Qxh5 {[%clk 0:00:58]} 0-1

[Event "*** Titled Tuesday Blitz"]
[Site "Chess.com"]
[Date "2021.02.09"]
[Round "1"]
[White "MelihKaanCan"]
[Black "Mr_Sinigami"]
[Result "0-1"]
[WhiteElo "2333"]
[BlackElo "2644"]
[TimeControl "180+1"]
[EndTime "10:07:07 PST"]
[Termination "Mr_Sinigami won by resignation"]

1. d4 {[%clk 0:02:59.4]} 1... Nf6 {[%clk 0:02:59.1]} 2. Nf3 {[%clk 0:02:59.2]}
2... g6 {[%clk 0:02:59.1]} 3. Bf4 {[%clk 0:02:58.4]} 3... Bg7 {[%clk 0:02:59]}
4. e3 {[%clk 0:02:58.2]} 4... O-O {[%clk 0:02:58.8]} 5. Be2 {[%clk 0:02:58.8]}
5... d6 {[%clk 0:02:59.1]} 6. h3 {[%clk 0:02:59.3]} 6... Nfd7 {[%clk 0:02:59.6]}
7. Bh2 {[%clk 0:02:59.4]} 7... e5 {[%clk 0:02:59.7]} 8. c4 {[%clk 0:02:59.5]}
8... Nc6 {[%clk 0:02:59.3]} 9. Nc3 {[%clk 0:02:59.6]} 9... f5 {[%clk 0:02:59.4]}
10. O-O {[%clk 0:02:56.4]} 10... f4 {[%clk 0:02:58.5]} 11. Rb1 {[%clk
0:02:52.9]} 11... h6 {[%clk 0:02:48.2]} 12. b4 {[%clk 0:02:52.7]} 12... g5
{[%clk 0:02:48.1]} 13. b5 {[%clk 0:02:52.6]} 13... Ne7 {[%clk 0:02:47.8]} 14.
Qb3 {[%clk 0:02:44.8]} 14... Kh8 {[%clk 0:02:38.2]} 15. Rfd1 {[%clk 0:02:44]}
15... Nf5 {[%clk 0:02:35.7]} 16. dxe5 {[%clk 0:02:43.5]} 16... dxe5 {[%clk
0:02:31.4]} 17. c5 {[%clk 0:02:37.6]} 17... Qe8 {[%clk 0:02:22.8]} 18. exf4
{[%clk 0:02:26.1]} 18... exf4 {[%clk 0:02:17.9]} 19. c6 {[%clk 0:02:01.4]} 19...
Nc5 {[%clk 0:02:16.8]} 20. Qc4 {[%clk 0:02:01.3]} 20... b6 {[%clk 0:02:14.2]}
21. Bf1 {[%clk 0:01:58]} 21... Be6 {[%clk 0:02:12.4]} 22. Qb4 {[%clk 0:01:57.5]}
22... Qf7 {[%clk 0:02:02.4]} 23. Re1 {[%clk 0:01:40.2]} 23... Bf6 {[%clk
0:01:42]} 24. Ne5 {[%clk 0:01:38.9]} 24... Qg7 {[%clk 0:01:41.8]} 25. Ne4 {[%clk
0:01:08]} 25... Bxe5 {[%clk 0:01:38.8]} 26. Nxc5 {[%clk 0:01:07.7]} 26... bxc5
{[%clk 0:01:38]} 27. Qe4 {[%clk 0:01:07.2]} 27... Bxa2 {[%clk 0:01:28]} 28. Rbc1
{[%clk 0:00:59.8]} 28... Rae8 {[%clk 0:01:24.4]} 29. Qa4 {[%clk 0:00:53.8]}
29... Bd5 {[%clk 0:01:05.8]} 30. Qxa7 {[%clk 0:00:52.7]} 30... Bd4 {[%clk
0:01:04]} 31. Rxe8 {[%clk 0:00:36.1]} 31... Rxe8 {[%clk 0:01:02.3]} 32. Qa5
{[%clk 0:00:30]} 32... Bxf2+ {[%clk 0:00:59.3]} 33. Kh1 {[%clk 0:00:27.5]} 33...
Bd4 {[%clk 0:00:35]} 34. b6 {[%clk 0:00:26.7]} 34... cxb6 {[%clk 0:00:34.4]} 35.
Qxb6 {[%clk 0:00:27.6]} 35... Ne3 {[%clk 0:00:32.5]} 36. c7 {[%clk 0:00:26.2]}
36... f3 {[%clk 0:00:32.3]} 37. Bd6 {[%clk 0:00:15.4]} 37... fxg2+ {[%clk
0:00:27]} 0-1

[Event "*** Titled Tuesday Blitz"]
[Site "Chess.com"]
[Date "2021.02.09"]
[Round "1"]
[White "andriipalchuk"]
[Black "Andrakhanova"]
[Result "1-0"]
[WhiteElo "2559"]
[BlackElo "2248"]
[TimeControl "180+1"]
[EndTime "10:07:08 PST"]
[Termination "andriipalchuk won by resignation"]

1. e4 {[%clk 0:02:54.6]} 1... c5 {[%clk 0:02:59.2]} 2. Nf3 {[%clk 0:02:52.3]}
2... e6 {[%clk 0:02:59.4]} 3. c3 {[%clk 0:02:50.5]} 3... Nf6 {[%clk 0:02:57.4]}
4. e5 {[%clk 0:02:50.5]} 4... Nd5 {[%clk 0:02:57.4]} 5. Bc4 {[%clk 0:02:49.5]}
5... Nb6 {[%clk 0:02:56.8]} 6. Bb3 {[%clk 0:02:49.5]} 6... d6 {[%clk 0:02:56]}
7. exd6 {[%clk 0:02:49.1]} 7... Bxd6 {[%clk 0:02:56.9]} 8. O-O {[%clk
0:02:47.7]} 8... O-O {[%clk 0:02:55.6]} 9. d4 {[%clk 0:02:47.3]} 9... h6 {[%clk
0:02:55.2]} 10. dxc5 {[%clk 0:02:46.7]} 10... Bxc5 {[%clk 0:02:54.6]} 11. Qe2
{[%clk 0:02:47.3]} 11... N8d7 {[%clk 0:02:48.9]} 12. Bf4 {[%clk 0:02:43.7]}
12... Nf6 {[%clk 0:02:41.8]} 13. Nbd2 {[%clk 0:02:42.3]} 13... Nbd5 {[%clk
0:02:39.4]} 14. Bg3 {[%clk 0:02:36.9]} 14... b6 {[%clk 0:02:22.9]} 15. Rfd1
{[%clk 0:02:34.1]} 15... Qe7 {[%clk 0:02:21.3]} 16. Bc2 {[%clk 0:02:09]} 16...
a5 {[%clk 0:02:12.6]} 17. Ne4 {[%clk 0:01:55.7]} 17... Ba6 {[%clk 0:02:08.2]}
18. Qe1 {[%clk 0:01:53]} 18... Nxe4 {[%clk 0:02:05.5]} 19. Bxe4 {[%clk
0:01:33.8]} 19... Rad8 {[%clk 0:02:00.1]} 20. Ne5 {[%clk 0:01:33]} 20... Bb7
{[%clk 0:01:49.4]} 21. c4 {[%clk 0:01:24.4]} 21... Nb4 {[%clk 0:01:30.6]} 22. a3
{[%clk 0:01:20.3]} 22... Na6 {[%clk 0:01:09.3]} 23. Nc6 {[%clk 0:01:09.3]} 23...
Bxc6 {[%clk 0:01:09.1]} 24. Bxc6 {[%clk 0:01:10.2]} 24... Rxd1 {[%clk
0:01:01.2]} 25. Rxd1 {[%clk 0:01:08.4]} 25... Rd8 {[%clk 0:01:02.1]} 26. Bf3
{[%clk 0:01:01.8]} 26... Bd4 {[%clk 0:00:55.2]} 27. Qe2 {[%clk 0:00:54.7]} 27...
Nc5 {[%clk 0:00:49]} 28. h3 {[%clk 0:00:48.4]} 28... Qf6 {[%clk 0:00:38.2]} 29.
Kh2 {[%clk 0:00:45.5]} 29... a4 {[%clk 0:00:29.6]} 30. Bc6 {[%clk 0:00:39.9]}
30... Kh7 {[%clk 0:00:23.8]} 31. Bb5 {[%clk 0:00:37.3]} 31... g6 {[%clk
0:00:23.1]} 32. Bc7 {[%clk 0:00:37]} 32... Rc8 {[%clk 0:00:20.8]} 33. Bxb6
{[%clk 0:00:37]} 33... Bxf2 {[%clk 0:00:17.5]} 34. Rf1 {[%clk 0:00:34]} 34...
Qf4+ {[%clk 0:00:13.5]} 35. Kh1 {[%clk 0:00:33.8]} 35... Ne4 {[%clk 0:00:13.8]}
36. Bxf2 {[%clk 0:00:32.4]} 36... Rd8 {[%clk 0:00:11.6]} 37. Be1 {[%clk
0:00:32.2]} 37... Ng3+ {[%clk 0:00:10]} 38. Bxg3 {[%clk 0:00:31.1]} 38... Qxg3
{[%clk 0:00:10.9]} 39. Rxf7+ {[%clk 0:00:31.4]} 39... Kg8 {[%clk 0:00:10.2]} 40.
Rf1 {[%clk 0:00:31.3]} 40... Rd4 {[%clk 0:00:09.1]} 41. Qxe6+ {[%clk 0:00:30.9]}
1-0

[Event "*** Titled Tuesday Blitz"]
[Site "Chess.com"]
[Date "2021.02.09"]
[Round "1"]
[White "IljaJoke"]
[Black "Grineva_Marianna"]
[Result "1-0"]
[WhiteElo "2518"]
[BlackElo "2197"]
[TimeControl "180+1"]
[EndTime "10:07:11 PST"]
[Termination "IljaJoke won by resignation"]

1. e4 {[%clk 0:02:58]} 1... c5 {[%clk 0:02:59.2]} 2. Nf3 {[%clk 0:02:58]} 2...
Nc6 {[%clk 0:02:57.6]} 3. d4 {[%clk 0:02:58]} 3... cxd4 {[%clk 0:02:57]} 4. Nxd4
{[%clk 0:02:58.9]} 4... Nf6 {[%clk 0:02:57.2]} 5. Nc3 {[%clk 0:02:59.2]} 5... g6
{[%clk 0:02:57.3]} 6. Nxc6 {[%clk 0:02:49.5]} 6... bxc6 {[%clk 0:02:58.2]} 7. e5
{[%clk 0:02:49.7]} 7... Ng8 {[%clk 0:02:58.3]} 8. Be3 {[%clk 0:02:48]} 8... Bg7
{[%clk 0:02:54.8]} 9. f4 {[%clk 0:02:40.9]} 9... Qa5 {[%clk 0:02:45.4]} 10. Bc4
{[%clk 0:02:38.5]} 10... Nh6 {[%clk 0:02:41.4]} 11. O-O {[%clk 0:02:28.2]} 11...
Rb8 {[%clk 0:02:12.9]} 12. Bb3 {[%clk 0:02:26.8]} 12... O-O {[%clk 0:02:12.1]}
13. Qd2 {[%clk 0:02:17.9]} 13... Kh8 {[%clk 0:01:53.9]} 14. h3 {[%clk
0:02:17.9]} 14... Ba6 {[%clk 0:01:50.9]} 15. Rfe1 {[%clk 0:02:15.2]} 15... Rbd8
{[%clk 0:01:45.8]} 16. Rad1 {[%clk 0:02:13.2]} 16... Nf5 {[%clk 0:01:42.1]} 17.
Bf2 {[%clk 0:02:05.9]} 17... d5 {[%clk 0:01:41.5]} 18. exd6 {[%clk 0:02:02.1]}
18... Rxd6 {[%clk 0:01:34.5]} 19. Qc1 {[%clk 0:02:02.4]} 19... Rxd1 {[%clk
0:01:31.4]} 20. Rxd1 {[%clk 0:01:58.5]} 20... Rd8 {[%clk 0:01:31.5]} 21. Rxd8+
{[%clk 0:01:56.2]} 21... Qxd8 {[%clk 0:01:32.4]} 22. Qd1 {[%clk 0:01:47.8]}
22... Qxd1+ {[%clk 0:01:20.6]} 23. Nxd1 {[%clk 0:01:48.7]} 23... Bd4 {[%clk
0:01:16.5]} 24. Bxf7 {[%clk 0:01:33.2]} 24... Kg7 {[%clk 0:01:07.8]} 25. Bb3
{[%clk 0:01:32.2]} 25... c5 {[%clk 0:01:03.8]} 26. c3 {[%clk 0:01:30]} 26...
Bxf2+ {[%clk 0:00:59.8]} 27. Kxf2 {[%clk 0:01:30.9]} 27... Bd3 {[%clk 0:00:57]}
28. g4 {[%clk 0:01:28.6]} 28... Nd6 {[%clk 0:00:56.5]} 29. Ke3 {[%clk
0:01:27.8]} 29... c4 {[%clk 0:00:51.6]} 30. Ba4 {[%clk 0:01:21]} 30... h5 {[%clk
0:00:51.4]} 31. Nf2 {[%clk 0:01:19.9]} 31... Bb1 {[%clk 0:00:48.9]} 32. a3
{[%clk 0:01:14.3]} 32... Kf6 {[%clk 0:00:42.1]} 33. Bc6 {[%clk 0:01:14.2]} 33...
e5 {[%clk 0:00:33.5]} 34. Ne4+ {[%clk 0:01:03.9]} 34... Nxe4 {[%clk 0:00:20.6]}
35. Bxe4 {[%clk 0:01:04.8]} 35... exf4+ {[%clk 0:00:21.3]} 36. Kxf4 {[%clk
0:01:04.7]} 36... Ba2 {[%clk 0:00:20.4]} 37. g5+ {[%clk 0:01:04]} 37... Kg7
{[%clk 0:00:18.7]} 38. h4 {[%clk 0:01:03.4]} 38... Bb3 {[%clk 0:00:18.8]} 39.
Ke5 {[%clk 0:01:03.8]} 39... Bd1 {[%clk 0:00:18.5]} 40. Kd4 {[%clk 0:01:01.6]}
40... Be2 {[%clk 0:00:18.1]} 41. Bd5 {[%clk 0:01:02]} 41... a5 {[%clk
0:00:16.2]} 42. Bxc4 {[%clk 0:01:02.2]} 42... Bg4 {[%clk 0:00:16.9]} 43. Ke5
{[%clk 0:01:01.3]} 43... Kf8 {[%clk 0:00:16.8]} 44. Bd3 {[%clk 0:00:59.5]} 44...
Kf7 {[%clk 0:00:16.1]} 45. c4 {[%clk 0:00:58.7]} 45... Ke7 {[%clk 0:00:15.8]}
46. c5 {[%clk 0:00:58.6]} 46... Kd7 {[%clk 0:00:16.2]} 47. Bxg6 {[%clk
0:00:58.6]} 47... Kc6 {[%clk 0:00:16.9]} 48. Kd4 {[%clk 0:00:58.8]} 48... a4
{[%clk 0:00:15.1]} 49. Be8+ {[%clk 0:00:58.7]} 49... Kc7 {[%clk 0:00:14.4]} 50.
g6 {[%clk 0:00:59.1]} 50... Be6 {[%clk 0:00:13]} 51. g7 {[%clk 0:00:59.2]} 51...
Kd8 {[%clk 0:00:12]} 52. Bxh5 {[%clk 0:00:59.1]} 52... Ke7 {[%clk 0:00:11.8]}
53. Bf3 {[%clk 0:00:56.8]} 53... Kf6 {[%clk 0:00:12.3]} 54. Bd5 {[%clk
0:00:56.3]} 1-0